fUSD/lending_fUSD_20250120
["ID","MTS","AMOUNT","RATE_DAILY","PERIOD"]
[349738103,1737402665331,-500.0,0.0002082,2]
[349738104,1737402665340,-631.6,0.0002082,2]
[349738105,1737402665349,-500.0,0.0002082,2]
[349738106,1737402665359,-500.0,0.0002082,2]
[349738107,1737402665369,-500.0,0.0002082,2]
[349738108,1737402665379,-500.0,0.0002082,2]
[349738109,1737402665388,-500.0,0.0002082,2]
[349738110,1737402665401,-500.74607928,0.0002082,2]
[349738111,1737402665411,-500.0,0.0002082,2]
[349738112,1737402665422,-500.0,0.0002082,2]
[349738113,1737402665433,-500.0,0.0002082,2]
[349738114,1737402665443,-570.75,0.0002082,2]
[349738115,1737402665452,-500.0,0.0002082,2]
[349738116,1737402665462,-500.0,0.0002082,2]
[349738117,1737402665472,-500.0,0.0002082,2]
[349738118,1737402665581,-500.0,0.0002082,2]
[349738119,1737402665591,-500.0,0.0002082,2]
[349738120,1737402665601,-582.42,0.0002082,2]
[349738121,1737402665611,-500.0,0.0002082,2]
[349738122,1737402665621,-498.60671258,0.0002082,2]
[349738123,1737402665630,-500.0,0.0002082,2]
[349738124,1737402665640,-649.32,0.0002082,2]
[349738125,1737402665653,-500.0,0.0002082,2]
[349738126,1737402665663,-500.0,0.0002082,2]
[349738127,1737402665673,-500.0,0.0002082,2]
[349738128,1737402665682,-749.57,0.0002082,2]
[349738129,1737402665692,-502.13754415,0.00020821,2]
[349738130,1737402665702,-816.16369153,0.00020821,2]
[349738131,1737402665711,-150.0,0.00020821,2]
[349738132,1737402665721,-693.56,0.00020821,2]
[349738133,1737402665730,-657.85,0.00020821,2]
[349738134,1737402665739,-500.0,0.00020821,2]
[349738135,1737402665749,-1377.16,0.00020821,2]
[349738136,1737402665758,-500.0,0.00020821,2]
[349738137,1737402665768,-631.07028792,0.00020821,2]
[349738138,1737402665777,-500.0,0.00020821,2]
[349738139,1737402665786,-514.64,0.00020821,2]
[349738140,1737402665796,-500.0,0.00020821,2]
[349738141,1737402665805,-500.0,0.00020821,2]
[349738142,1737402665820,-500.0,0.00020821,2]
[349738143,1737402665829,-500.0,0.00020821,2]
[349738144,1737402665839,-500.0,0.00020821,2]
[349738145,1737402665848,-500.0,0.00020821,2]
[349738146,1737402665858,-500.0,0.00020821,2]
[349738147,1737402665868,-709.92,0.00020821,2]
[349738148,1737402665877,-571.54,0.00020821,2]
[349738149,1737402665887,-1139.537215,0.00020821,2]
[349738150,1737402665896,-500.0,0.00020821,2]
[349738151,1737402665907,-151.0,0.00020821,2]
[349738152,1737402665917,-1139.537215,0.00020821,2]
[349738153,1737402665926,-510.61,0.00020821,2]
[349738154,1737402665935,-500.0,0.00020821,2]
[349738155,1737402665944,-151.0,0.00020821,2]
[349738156,1737402665953,-151.0,0.00020821,2]
[349738157,1737402665962,-704.92,0.00020821,2]
[349738158,1737402665972,-500.0,0.00020821,2]
[349738159,1737402665981,-500.0,0.00020821,2]
[349738160,1737402665991,-401.38616258,0.00020821,2]
[349738161,1737402666000,-151.0,0.00020821,2]
[349738162,1737402666010,-500.0,0.00020821,2]
[349738163,1737402666019,-500.0,0.00020821,2]
[349738164,1737402666028,-500.0,0.00020821,2]
[349738165,1737402666037,-967.1,0.00020821,2]
[349738166,1737402666047,-500.0,0.00020821,2]
[349738167,1737402666056,-1040.77,0.00020821,2]
[349738168,1737402666066,-926.08,0.00020821,2]
[349738169,1737402666075,-738.16,0.00020821,2]
[349738170,1737402666085,-782.11,0.00020821,2]
[349738171,1737402666096,-151.0,0.00020821,2]
[349738172,1737402666105,-500.0,0.00020821,2]
[349738173,1737402666114,-757.81,0.00020821,2]
[349738174,1737402666123,-151.0,0.00020821,2]
[349738175,1737402666133,-748.69,0.00020821,2]
[349738176,1737402666142,-670.79,0.00020821,2]
[349738177,1737402666153,-1131.49,0.00020821,2]
[349738178,1737402666163,-571.14,0.00020821,2]
[349738179,1737402666174,-530.83,0.00020821,2]
[349738180,1737402666183,-1001.16,0.00020821,2]
[349738181,1737402666193,-903.29,0.00020821,2]
[349738182,1737402666202,-688.81,0.00020821,2]
[349738183,1737402666212,-867.32,0.00020821,2]
[349738184,1737402666226,-783.82,0.00020821,2]
[349738185,1737402666245,-1397.83,0.00020821,2]
[349738186,1737402666263,-509.57,0.00020821,2]
[349738187,1737402666281,-1084.16,0.00020821,2]
[349738188,1737402666299,-500.0,0.00020821,2]
[349738189,1737402666314,-2324.14,0.00020821,2]
[349738190,1737402666331,-2720.61,0.00020821,2]
[349738191,1737402666350,-2896.78,0.00020821,2]
[349738192,1737402666366,-4971.5,0.00020821,2]
[349738193,1737402666384,-1129.36,0.00020821,2]
[349738194,1737402666405,-711.14,0.00020821,2]
[349738195,1737402666422,-855.3,0.00020821,2]
[349738196,1737402666437,-1070.95,0.00020821,2]
[349738197,1737402666455,-748.2,0.00020821,2]
[349738198,1737402666469,-1713.39,0.00020821,2]
[349738199,1737402666486,-5370.89,0.00020821,2]
[349738200,1737402666500,-3890.34,0.00020821,2]
[349738201,1737402666516,-863.32,0.00020821,2]
[349738202,1737402666532,-1226.35,0.00020821,2]
[349738203,1737402666549,-1111.21,0.00020821,2]
[349738204,1737402666565,-1732.203098,0.00020821,2]
[349738205,1737402666580,-1732.203098,0.00020821,2]
[349738206,1737402666595,-1754.48,0.00020821,2]
[349738207,1737402666611,-2786.79,0.00020821,2]
[349738208,1737402666627,-500.0,0.00020821,2]
[349738209,1737402666642,-1125.92,0.00020821,2]
[349738210,1737402666658,-2395.51,0.00020821,2]
[349738211,1737402666673,-500.0,0.00020821,2]
[349738212,1737402666688,-151.0,0.00020821,2]
[349738213,1737402666704,-910.76,0.00020821,2]
[349738214,1737402666719,-387.879959,0.00020821,2]
[349738215,1737402666734,-500.0,0.00020821,2]
[349738216,1737402666750,-387.879959,0.00020821,2]
[349738217,1737402666766,-1897.83,0.00020821,2]
[349738218,1737402666782,-1391.07,0.00020821,2]
[349738219,1737402666798,-4210.59,0.00020821,2]
[349738220,1737402666815,-1110.48,0.00020821,2]
[349738221,1737402666830,-649.64,0.00020821,2]
[349738222,1737402666846,-2128.9,0.00020821,2]
[349738223,1737402666862,-500.0,0.00020821,2]
[349738224,1737402666877,-515.27,0.00020821,2]
[349738225,1737402666891,-619.67,0.00020821,2]
[349738226,1737402666906,-500.0,0.00020821,2]
[349738227,1737402666920,-2130.06,0.00020821,2]
[349738228,1737402666936,-500.0,0.00020821,2]
[349738229,1737402666951,-589.39,0.00020821,2]
[349738230,1737402666963,-1000.0,0.00020821,2]
[349738231,1737402666974,-1740.71,0.00020821,2]
[349738232,1737402666984,-1099.37,0.00020821,2]
[349738233,1737402666994,-1209.92,0.00020821,2]
[349738234,1737402667003,-500.0,0.00020821,2]
[349738235,1737402667013,-838.12,0.00020821,2]
[349738236,1737402667023,-656.66,0.00020821,2]
[349738237,1737402667032,-1931.69,0.00020821,2]
[349738238,1737402667042,-617.57,0.00020821,2]
[349738239,1737402667052,-728.46,0.00020821,2]
[349738240,1737402667061,-2704.82,0.00020821,2]
[349738241,1737402667070,-500.0,0.00020821,2]
[349738242,1737402667080,-170.91428,0.00020821,2]
[349738243,1737402667090,-500.0,0.00020821,2]
[349738244,1737402667099,-2566.58,0.00020821,2]
[349738245,1737402667108,-500.0,0.00020821,2]
[349738246,1737402667118,-1375.78,0.00020821,2]
[349738247,1737402667128,-170.91428,0.00020821,2]
[349738248,1737402667137,-500.0,0.00020821,2]
[349738249,1737402667146,-541.9,0.00020821,2]
[349738250,1737402667157,-616.51,0.00020821,2]
[349738251,1737402667167,-500.0,0.00020821,2]
[349738252,1737402667177,-500.0,0.00020821,2]
[349738253,1737402667427,-150.0,0.00020838,2]
[349738254,1737402667449,-256.14937495,0.00020844,2]
[349738255,1737402667466,-151.0,0.00020863,2]
[349738256,1737402667476,-619.662255,0.00020863,2]
[349738257,1737402667485,-619.662255,0.00020863,2]
[349738258,1737402667494,-1259.42,0.00020863,7]
[349738259,1737402667504,-1259.42,0.00020863,7]
[349738260,1737402667514,-1000.0,0.00020866,2]
[349738261,1737402667523,-150.0,0.00020871,2]
[349738262,1737402667533,-500.0,0.00020893,2]
[349738263,1737402667542,-500.0,0.00020893,2]
[349738264,1737402667551,-500.0,0.00020893,2]
[349738265,1737402667561,-500.0,0.00020893,2]
[349738266,1737402667570,-1077.88,0.00020893,2]
[349738267,1737402667580,-639.2096161,0.00020893,2]
[349738268,1737402667589,-2286.06,0.00020893,2]
[349738269,1737402667599,-853.385106,0.00020893,2]
[349738270,1737402667608,-500.0,0.00020893,2]
[349738271,1737402667617,-500.0,0.00020893,2]
[349738272,1737402667626,-500.0,0.00020893,2]
[349738273,1737402667636,-2776.39,0.00020893,2]
[349738274,1737402667646,-1794.68,0.00020893,2]
[349738275,1737402667656,-623.00358,0.00020893,2]
[349738276,1737402667665,-1645.42,0.00020893,2]
[349738277,1737402667675,-500.0,0.00020893,2]
[349738278,1737402667685,-1167.65,0.00020893,2]
[349738279,1737402667695,-806.39,0.00020893,2]
[349738280,1737402667704,-500.0,0.00020893,2]
[349738281,1737402667714,-862.81,0.00020893,2]
[349738282,1737402667724,-500.0,0.00020893,2]
[349738283,1737402667734,-3946.69,0.00020893,2]
[349738284,1737402667749,-1049.73,0.00020893,2]
[349738285,1737402667758,-2193.59,0.00020893,2]
[349738286,1737402667768,-757.02,0.00020893,2]
[349738287,1737402667778,-859.6,0.00020893,2]
[349738288,1737402667787,-1610.74,0.00020893,2]
[349738289,1737402667797,-1446.28,0.00020893,2]
[349738290,1737402667807,-2739.71,0.00020893,2]
[349738291,1737402667823,-500.0,0.00020893,2]
[349738292,1737402667833,-1764.04,0.00020893,2]
[349738293,1737402667843,-1405.55,0.00020893,2]
[349738294,1737402667852,-748.86,0.00020893,2]
[349738295,1737402667862,-500.0,0.00020893,2]
[349738296,1737402667871,-500.0,0.00020893,2]
[349738297,1737402667880,-1064.69,0.00020893,2]
[349738298,1737402667890,-2132.45,0.00020893,2]
[349738299,1737402667899,-859.63,0.00020893,2]
[349738300,1737402667909,-500.0,0.00020893,2]
[349738301,1737402667918,-1772.55,0.00020893,2]
[349738302,1737402667927,-2696.06,0.00020893,2]
[349738303,1737402667936,-1670.66,0.00020893,2]
[349738304,1737402667946,-2021.54,0.00020893,2]
[349738305,1737402667955,-3006.85,0.00020893,2]
[349738306,1737402667965,-968.15,0.00020893,2]
[349738307,1737402667974,-3229.93,0.00020893,2]
[349738308,1737402667983,-877.14,0.00020893,2]
[349738309,1737402667993,-151.0,0.00020893,2]
[349738310,1737402668002,-530.92,0.00020893,2]
[349738311,1737402668012,-1218.15,0.00020893,2]
[349738312,1737402668022,-500.0,0.00020893,2]
[349738313,1737402668031,-721.51,0.00020893,2]
[349738314,1737402668040,-3000.08,0.00020893,2]
[349738315,1737402668049,-1221.52,0.00020893,2]
[349738316,1737402668060,-500.0,0.00020893,2]
[349738317,1737402668069,-643.19,0.00020893,2]
[349738318,1737402668078,-3790.6,0.00020893,2]
[349738319,1737402668087,-615.56,0.00020893,2]
[349738320,1737402668096,-785.77,0.00020893,2]
[349738321,1737402668105,-500.0,0.00020893,2]
[349738322,1737402668115,-500.0,0.00020893,2]
[349738323,1737402668124,-500.0,0.00020893,2]
[349738324,1737402668134,-522.12,0.00020893,2]
[349738325,1737402668143,-563.67,0.00020893,2]
[349738326,1737402668152,-3626.0,0.00020893,2]
[349738327,1737402668162,-500.0,0.00020893,2]
[349738328,1737402668171,-610.04,0.00020893,2]
[349738329,1737402668180,-2085.34,0.00020893,2]
[349738330,1737402668190,-150.0,0.00020894,2]
[349738331,1737402668199,-150.0,0.00020895,2]
[349738332,1737402668208,-500.0,0.00020896,2]
[349738333,1737402668219,-48297.89143459,0.000209,2]
[349738334,1737402668228,-1340.264107,0.000209,2]
[349738335,1737402668237,-151.0,0.000209,2]
[349738336,1737402668246,-151.0,0.000209,2]
[349738337,1737402668255,-155.545486,0.000209,2]
[349738338,1737402668265,-151.0,0.000209,2]
[349738339,1737402668274,-151.0,0.000209,2]
[349738340,1737402668283,-421.85864668,0.000209,2]
[349738341,1737402668294,-12439.00602618,0.000209,2]
[349738342,1737402668303,-11319.17628485,0.000209,2]
[349738343,1737402668313,-206.78671214,0.000209,2]
[349738344,1737402668323,-150.0,0.00020918,2]
[349738345,1737402668331,-150.0,0.00020925,2]
[349738346,1737402668341,-1259.69,0.00020935,2]
[349738347,1737402668351,-113564.61,0.00020951,2]
[349738348,1737402668360,-2308.13,0.00020951,2]
[349738349,1737402668369,-810.12,0.00020951,2]
[349738350,1737402668379,-150.99,0.00020951,2]
[349738351,1737402668388,-535.28,0.00020956,2]
[349738352,1737402668397,-541.57142317,0.00020973,2]
[349738353,1737402668408,-500.0,0.00020973,2]
[349738354,1737402668418,-150.0,0.00020973,2]
[349738355,1737402668427,-150.0,0.00020986,4]
[349738356,1737402668438,-150.0,0.00020986,4]
[349738357,1737402668448,-150.0,0.00020986,4]
[349738358,1737402668457,-150.42856401,0.00020986,4]
[349738359,1737402668466,-151.71501576,0.00020986,4]
[349738360,1737402668476,-399.77336984,0.0002099,2]
[349738361,1737402668485,-399.77336984,0.0002099,2]
[349738362,1737402668494,-150.0,0.00020991,2]
[349738363,1737402668504,-150.0,0.00020998,2]
[349738364,1737402668512,-157627.7176732,0.00021,2]
[349738365,1737402668530,-1394.25,0.00021,2]
[349738366,1737402668546,-1056.34317,0.00021,2]
[349738367,1737402668557,-1336.48117657,0.00021,2]
[349738368,1737402668569,-1747.8,0.00021,2]
[349738369,1737402668580,-1797.14480292,0.00021,2]
[349738370,1737402668591,-1526.43607782,0.00021,2]
[349738371,1737402668602,-4144.86206469,0.00021,2]
[349738372,1737402668614,-2291.851,0.00021,2]
[349738373,1737402668629,-3111.84605474,0.00021,2]
[349738374,1737402668640,-14227.571461,0.00021,2]
[349738375,1737402668652,-1581.57987107,0.00021,2]
[349738376,1737402668665,-21947.859396,0.00021,2]
[349738377,1737402668676,-503.47353271,0.00021,2]
[349738378,1737402668687,-26665.8147536,0.00021,2]
[349738379,1737402668699,-2070.0,0.00021,2]
[349738380,1737402668710,-761.25738331,0.00021,2]
[349738386,1737403206989,-550.0,0.00015,2]
[349738387,1737403213275,-5556.0,0.000155,5]
[349738388,1737403222411,-600.0,0.00017,2]
[349738389,1737403319141,222.98,0.00010137,2]
[349738402,1737403831892,-266.49,0.00012329,2]
[349738403,1737403831902,-855.62078487,0.00016391,2]
[349738404,1737403831911,-1573.86,0.00016491,2]
[349738405,1737403831920,-222.98,0.00016813,2]
[349738406,1737403831930,-1461.51645475,0.00017998,2]
[349738407,1737403831942,-538.48354525,0.00017998,2]
[349738408,1737403831952,-500.0,0.00018164,2]
[349738409,1737403831962,-162.83,0.00018195,2]
[349738410,1737403831971,-300.0,0.00018226,2]
[349738411,1737403831981,-1108.18237914,0.00018227,2]
[349738412,1737403831993,-4901.51762086,0.00018227,2]
[349738413,1737403832002,-398.48237914,0.00018254,2]
[349738414,1737403832014,-189.72762086,0.00018254,2]
[349738415,1737403832023,-1000.0,0.00018297,2]
[349738416,1737403832032,-174.94,0.00018297,2]
[349738417,1737403832042,-250.0,0.00018595,2]
[349738418,1737403832051,-458.33237914,0.00018676,2]
[349738419,1737403832065,-191.43762086,0.00018676,2]
[349738420,1737403832075,-250.0,0.00018733,2]
[349738421,1737403832084,-150.0,0.00018747,2]
[349738422,1737403832094,-1573.86,0.00018755,2]
[349738423,1737403832103,-170.75,0.00018867,2]
[349738424,1737403832112,-650.0,0.00019,2]
[349738425,1737403832123,-3818.32497804,0.00019031,2]
[349738426,1737403832134,-690.25174002,0.00019031,2]
[349738427,1737403832143,-550.43070698,0.00019078,2]
[349738428,1737403832153,-1149.792,0.00019079,2]
[349738429,1737403832162,-250.0,0.00019079,2]
[349738430,1737403832172,-162.83,0.00019105,2]
[349738431,1737403832181,-561.68503157,0.00019178,2]
[349738432,1737403832192,-375.27828906,0.00019178,2]
[349738433,1737403832203,-500.0,0.00019178,2]
[349738434,1737403832213,-1031.17,0.00019178,2]
[349738435,1737403832222,-500.0,0.00019178,2]
[349738436,1737403832232,-615.35,0.00019178,2]
[349738437,1737403832242,-500.0,0.00019178,2]
[349738438,1737403832252,-641.4,0.00019178,2]
[349738439,1737403832261,-500.0,0.00019178,2]
[349738440,1737403832272,-500.0,0.00019178,2]
[349738441,1737403832282,-500.0,0.00019178,2]
[349738442,1737403832291,-500.0,0.00019178,2]
[349738443,1737403832300,-741.81,0.00019178,2]
[349738444,1737403832309,-500.0,0.00019178,2]
[349738445,1737403832319,-500.0,0.00019178,2]
[349738446,1737403832328,-500.0,0.00019178,2]
[349738447,1737403832337,-679.35,0.00019178,2]
[349738448,1737403832347,-500.0,0.00019178,2]
[349738449,1737403832356,-1000.0,0.00019181,2]
[349738450,1737403832367,-20077.33,0.00019276,2]
[349738451,1737403832377,-1268.25,0.00019405,30]
[349738453,1737403832388,-243.39231978,0.00019423,2]
[349738455,1737403832398,-500.0,0.00019452,2]
[349738458,1737403832408,-1031.17,0.00019452,2]
[349738460,1737403832419,-500.0,0.00019452,2]
[349738462,1737403832429,-615.35,0.00019452,2]
[349738463,1737403832438,-641.4,0.00019452,2]
[349738465,1737403832448,-500.0,0.00019452,2]
[349738467,1737403832457,-500.0,0.00019452,2]
[349738470,1737403832467,-500.0,0.00019452,2]
[349738471,1737403832476,-500.0,0.00019452,2]
[349738474,1737403832486,-741.81,0.00019452,2]
[349738475,1737403832495,-500.0,0.00019452,2]
[349738477,1737403832505,-500.0,0.00019452,2]
[349738479,1737403832514,-679.35,0.00019452,2]
[349738481,1737403832524,-500.0,0.00019452,2]
[349738483,1737403832533,-173.1,0.0001952,2]
[349738485,1737403832542,-187.5,0.00019521,2]
[349738487,1737403832551,-201.69367641,0.00019522,2]
[349738489,1737403832562,-500.0,0.00019522,2]
[349738491,1737403832571,-2838.62,0.00019522,2]
[349738493,1737403832581,-867.4,0.00019522,2]
[349738495,1737403832590,-620.12,0.00019522,2]
[349738497,1737403832599,-1772.57,0.00019522,2]
[349738499,1737403832609,-697.687434,0.00019522,2]
[349738501,1737403832619,-500.0,0.00019522,2]
[349738503,1737403832629,-500.0,0.00019522,2]
[349738505,1737403832638,-551.11,0.00019522,2]
[349738507,1737403832647,-500.0,0.00019522,2]
[349738509,1737403832656,-490.807594,0.00019522,2]
[349738511,1737403832666,-1404.68,0.00019522,2]
[349738513,1737403832676,-2182.52,0.00019522,2]
[349738515,1737403832685,-1282.85,0.00019522,2]
[349738517,1737403832694,-500.0,0.00019522,2]
[349738519,1737403832703,-500.0,0.00019522,2]
[349738521,1737403832712,-634.2,0.00019522,2]
[349738522,1737403832721,-3088.94,0.00019522,2]
[349738523,1737403832732,-855.77,0.00019522,2]
[349738524,1737403832741,-670.81,0.00019522,2]
[349738525,1737403832751,-1269.38,0.00019522,2]
[349738526,1737403832760,-500.0,0.00019522,2]
[349738527,1737403832769,-588.68,0.00019522,2]
[349738528,1737403832779,-1670.4,0.00019522,2]
[349738529,1737403832788,-1284.11,0.00019522,2]
[349738530,1737403832798,-1402.28,0.00019522,2]
[349738531,1737403832808,-2403.73,0.00019522,2]
[349738532,1737403832817,-2608.19,0.00019522,2]
[349738533,1737403832826,-968.07,0.00019522,2]
[349738534,1737403832835,-936.97,0.00019522,2]
[349738536,1737403832845,-2980.18,0.00019522,2]
[349738537,1737403832854,-500.0,0.00019523,2]
[349738539,1737403832863,-500.0,0.00019523,2]
[349738540,1737403832874,-500.0,0.00019523,2]
[349738541,1737403832883,-500.0,0.00019523,2]
[349738542,1737403832893,-500.0,0.00019523,2]
[349738543,1737403832903,-422.59635745,0.00019523,2]
[349738544,1737403832913,-507.09917656,0.00019523,2]
[349738545,1737403832923,-500.0,0.00019523,2]
[349738546,1737403832933,-500.0,0.00019523,2]
[349738547,1737403832943,-500.0,0.00019523,2]
[349738548,1737403832952,-500.0,0.00019523,2]
[349738549,1737403832962,-509.89847375,0.00019523,2]
[349738550,1737403832971,-284.06431727,0.00019523,2]
[349738551,1737403832981,-500.0,0.00019523,2]
[349738552,1737403832990,-500.0,0.00019523,2]
[349738553,1737403832999,-500.0,0.00019523,7]
[349738554,1737403833009,-500.0,0.00019523,2]
[349738555,1737403833018,-500.0,0.00019523,2]
[349738556,1737403833028,-500.0,0.00019523,2]
[349738557,1737403833037,-500.0,0.00019523,2]
[349738558,1737403833047,-271.23105977,0.00019523,2]
[349738559,1737403833056,-500.0,0.00019523,2]
[349738560,1737403833066,-506.64335937,0.00019523,2]
[349738561,1737403833076,-500.0,0.00019523,2]
[349738562,1737403833093,-500.0,0.00019523,2]
[349738563,1737403833105,-158.24717016,0.00019523,2]
[349738564,1737403833116,-500.0,0.00019523,2]
[349738565,1737403833126,-500.0,0.00019523,2]
[349738566,1737403833136,-500.0,0.00019523,2]
[349738567,1737403833147,-500.0,0.00019523,2]
[349738568,1737403833156,-500.0,0.00019523,2]
[349738569,1737403833166,-500.0,0.00019523,2]
[349738570,1737403833177,-608.49427626,0.00019523,2]
[349738571,1737403833191,-500.0,0.00019523,2]
[349738572,1737403833201,-500.0,0.00019523,2]
[349738573,1737403833212,-500.0,0.00019523,2]
[349738574,1737403833222,-500.0,0.00019523,2]
[349738575,1737403833233,-506.43526092,0.00019523,2]
[349738576,1737403833243,-508.70125497,0.00019523,2]
[349738577,1737403833253,-500.0,0.00019523,2]
[349738578,1737403833263,-500.0,0.00019523,2]
[349738579,1737403833273,-500.0,0.00019523,2]
[349738580,1737403833282,-504.59535543,0.00019523,2]
[349738581,1737403833292,-500.73421465,0.00019523,2]
[349738582,1737403833301,-500.0,0.00019523,2]
[349738583,1737403833311,-500.0,0.00019523,2]
[349738584,1737403833321,-500.0,0.00019523,2]
[349738585,1737403833330,-505.06600671,0.00019523,2]
[349738586,1737403833339,-503.51413611,0.00019523,2]
[349738587,1737403833349,-501.6746836,0.00019523,2]
[349738588,1737403833358,-500.0,0.00019523,2]
[349738589,1737403833369,-500.0,0.00019523,2]
[349738590,1737403833380,-500.0,0.00019523,2]
[349738591,1737403833390,-335.40566435,0.00019523,2]
[349738592,1737403833400,-516.02862644,0.00019523,2]
[349738593,1737403833410,-505.10532226,0.00019523,2]
[349738594,1737403833419,-500.0,0.00019523,2]
[349738595,1737403833429,-500.0,0.00019523,2]
[349738596,1737403833439,-500.0,0.00019523,2]
[349738597,1737403833448,-500.0,0.00019523,2]
[349738598,1737403833457,-500.0,0.00019523,2]
[349738599,1737403833467,-506.93517845,0.00019523,2]
[349738600,1737403833476,-503.00850523,0.00019523,2]
[349738601,1737403833485,-500.0,0.00019523,2]
[349738602,1737403833495,-500.0,0.00019523,2]
[349738603,1737403833505,-500.0,0.00019523,2]
[349738604,1737403833514,-500.0,0.00019523,2]
[349738605,1737403833524,-500.0,0.00019523,2]
[349738606,1737403833534,-500.0,0.00019523,2]
[349738607,1737403833543,-500.0,0.00019523,2]
[349738608,1737403833554,-500.0,0.00019523,2]
[349738609,1737403833564,-500.0,0.00019523,2]
[349738610,1737403833573,-500.0,0.00019523,2]
[349738611,1737403833582,-500.0,0.00019523,2]
[349738612,1737403833592,-500.0,0.00019523,2]
[349738613,1737403833602,-590.72,0.00019523,2]
[349738614,1737403833611,-500.0,0.00019523,2]
[349738615,1737403833624,-500.0,0.00019523,2]
[349738616,1737403833634,-500.0,0.00019523,2]
[349738617,1737403833644,-500.0,0.00019523,2]
[349738618,1737403833654,-500.0,0.00019523,2]
[349738619,1737403833664,-500.0,0.00019523,2]
[349738620,1737403833673,-500.0,0.00019523,2]
[349738621,1737403833683,-500.0,0.00019523,2]
[349738622,1737403833692,-692.05,0.00019523,2]
[349738623,1737403833702,-500.0,0.00019523,2]
[349738624,1737403833712,-500.0,0.00019523,2]
[349738625,1737403833722,-500.0,0.00019523,2]
[349738626,1737403833731,-500.0,0.00019523,2]
[349738627,1737403833741,-500.0,0.00019523,2]
[349738628,1737403833750,-500.0,0.00019523,2]
[349738629,1737403833760,-500.0,0.00019523,2]
[349738630,1737403833770,-500.0,0.00019523,2]
[349738631,1737403833779,-666.48,0.00019523,2]
[349738632,1737403833789,-566.54670418,0.00019523,2]
[349738633,1737403833800,-500.0,0.00019523,2]
[349738634,1737403833811,-500.0,0.00019523,2]
[349738635,1737403833821,-576.15,0.00019523,2]
[349738636,1737403833830,-500.0,0.00019523,2]
[349738637,1737403833840,-500.0,0.00019523,2]
[349738638,1737403833850,-500.0,0.00019523,2]
[349738639,1737403833860,-500.0,0.00019523,2]
[349738640,1737403833870,-500.0,0.00019523,2]
[349738641,1737403833880,-500.0,0.00019523,2]
[349738642,1737403833890,-500.0,0.00019523,2]
[349738643,1737403833901,-500.0,0.00019523,2]
[349738644,1737403833911,-500.0,0.00019523,2]
[349738645,1737403833921,-500.0,0.00019523,2]
[349738646,1737403833931,-500.0,0.00019523,2]
[349738647,1737403833941,-500.0,0.00019523,2]
[349738648,1737403833950,-500.0,0.00019523,2]
[349738649,1737403833960,-500.0,0.00019523,2]
[349738650,1737403833970,-500.0,0.00019523,2]
[349738651,1737403833980,-500.0,0.00019523,2]
[349738652,1737403833990,-507.66056457,0.00019523,2]
[349738653,1737403833999,-500.0,0.00019523,2]
[349738654,1737403834009,-821.63,0.00019523,2]
[349738655,1737403834018,-500.0,0.00019523,2]
[349738656,1737403834028,-500.0,0.00019523,2]